[Event "January 9 Early 2024"]
[Site "https://www.chess.com"]
[Date "2024.01.11"]
[Round "8"]
[White "Sasvatha A"]
[Black "Babayeva, Nasrin"]
[Result "1-0"]
[Board "246"]
[TimeControl "180+1"]
[WhiteFideId "45010862"]
[BlackFideId "13416626"]
[WhiteElo "2176"]
[BlackElo "1845"]
[WhiteTeam "IND"]
[BlackTeam "AZE"]
[WhiteClock "0:00:06"]
[BlackClock "0:00:05"]

1. d4 {[%clk 0:02:59]}  d6 {[%clk 0:02:54]} 2. Nf3 {[%clk 0:02:58]}  Bg4 {[%clk 0:02:49]} 3. e3 {[%clk 0:02:55]}  Nf6 {[%clk 0:02:48]} 4. h3 {[%clk 0:02:55]}  Bh5 {[%clk 0:02:47]} 5. Bd3 {[%clk 0:02:55]}  e6 {[%clk 0:02:46]} 6. Nbd2 {[%clk 0:02:55]}  Be7 {[%clk 0:02:46]} 7. c4 {[%clk 0:02:54]}  Nbd7 {[%clk 0:02:46]} 8. Qc2 {[%clk 0:02:54]}  Bg6 {[%clk 0:02:43]} 9. b3 {[%clk 0:02:53]}  c5 {[%clk 0:02:36]} 10. Bb2 {[%clk 0:02:53]}  d5 {[%clk 0:02:30]} 11. Ne5 {[%clk 0:02:49]}  Rc8 {[%clk 0:02:19]} 12. f4 {[%clk 0:02:37]}  cxd4 {[%clk 0:02:09]} 13. exd4 {[%clk 0:02:38]}  Bxd3 {[%clk 0:02:07]} 14. Qxd3 {[%clk 0:02:38]}  Bb4 {[%clk 0:02:06]} 15. O-O {[%clk 0:02:30]}  Bxd2 {[%clk 0:01:59]} 16. Qxd2 {[%clk 0:02:31]}  Ne4 {[%clk 0:01:59]} 17. Qd3 {[%clk 0:02:31]}  O-O {[%clk 0:01:49]} 18. Rae1 {[%clk 0:02:29]}  Ndf6 {[%clk 0:01:48]} 19. f5 {[%clk 0:02:25]}  Re8 {[%clk 0:01:33]} 20. fxe6 {[%clk 0:02:24]}  Rxe6 {[%clk 0:01:34]} 21. Rf3 {[%clk 0:02:15]}  Qa5 {[%clk 0:01:26]} 22. Re2 {[%clk 0:02:05]}  Rd8 {[%clk 0:01:11]} 23. cxd5 {[%clk 0:02:02]}  Qxd5 {[%clk 0:01:08]} 24. Qc2 {[%clk 0:01:46]}  Re7 {[%clk 0:00:50]} 25. Rf4 {[%clk 0:01:35]}  b6 {[%clk 0:00:38]} 26. Rfxe4 {[%clk 0:01:33]}  Nxe4 {[%clk 0:00:37]} 27. Qxe4 {[%clk 0:01:29]}  f6 {[%clk 0:00:17]} 28. Qxd5+ {[%clk 0:00:55]}  Rxd5 {[%clk 0:00:17]} 29. Ba3 {[%clk 0:00:51]}  Re6 {[%clk 0:00:10]} 30. Bb2 {[%clk 0:00:45]}  fxe5 {[%clk 0:00:09]} 31. dxe5 {[%clk 0:00:46]}  Rd1+ {[%clk 0:00:08]} 32. Kh2 {[%clk 0:00:46]}  Kf7 {[%clk 0:00:08]} 33. a3 {[%clk 0:00:46]}  Ke8 {[%clk 0:00:08]} 34. b4 {[%clk 0:00:46]}  Rb1 {[%clk 0:00:08]} 35. Rf2 {[%clk 0:00:43]}  Ke7 {[%clk 0:00:07]} 36. Rc2 {[%clk 0:00:43]}  Kd7 {[%clk 0:00:06]} 37. Rd2+ {[%clk 0:00:42]}  Kc7 {[%clk 0:00:05]} 38. Rf2 {[%clk 0:00:42]}  Re7 {[%clk 0:00:05]} 39. Re2 {[%clk 0:00:39]}  Rd1 {[%clk 0:00:06]} 40. Bc3 {[%clk 0:00:38]}  Rd3 {[%clk 0:00:06]} 41. Bb2 {[%clk 0:00:37]}  Kb7 {[%clk 0:00:06]} 42. Bc1 {[%clk 0:00:37]}  Rc3 {[%clk 0:00:05]} 43. Bb2 {[%clk 0:00:34]}  Rb3 {[%clk 0:00:05]} 44. Rd2 {[%clk 0:00:34]}  Kc7 {[%clk 0:00:04]} 45. Rc2+ {[%clk 0:00:34]}  Kb7 {[%clk 0:00:04]} 46. Re2 {[%clk 0:00:33]}  a5 {[%clk 0:00:04]} 47. bxa5 {[%clk 0:00:33]}  bxa5 {[%clk 0:00:05]} 48. Rd2 {[%clk 0:00:32]}  Rb5 {[%clk 0:00:06]} 49. Re2 {[%clk 0:00:32]}  Ka6 {[%clk 0:00:06]} 50. Bd4 {[%clk 0:00:30]}  Rd5 {[%clk 0:00:05]} 51. Bb2 {[%clk 0:00:27]}  Rb7 {[%clk 0:00:05]} 52. Ba1 {[%clk 0:00:20]}  Rd3 {[%clk 0:00:03]} 53. e6 {[%clk 0:00:19]}  Re7 {[%clk 0:00:01]} 54. Bxg7 {[%clk 0:00:16]}  Rd6 {[%clk 0:00:02]} 55. Bf6 {[%clk 0:00:12]}  Rdxe6 {[%clk 0:00:03]} 56. Rxe6+ {[%clk 0:00:10]}  Rxe6 {[%clk 0:00:04]} 57. Bb2 {[%clk 0:00:10]}  Re3 {[%clk 0:00:04]} 58. Kg1 {[%clk 0:00:10]}  Rb3 {[%clk 0:00:05]} 59. Bf6 {[%clk 0:00:08]}  Rxa3 {[%clk 0:00:06]} 60. g4 {[%clk 0:00:08]}  Ra2 {[%clk 0:00:07]} 61. h4 {[%clk 0:00:08]}  a4 {[%clk 0:00:07]} 62. g5 {[%clk 0:00:09]}  Re2 {[%clk 0:00:06]} 63. h5 {[%clk 0:00:09]}  Re4 {[%clk 0:00:07]} 64. Kf2 {[%clk 0:00:07]}  Rh4 {[%clk 0:00:07]} 65. h6 {[%clk 0:00:05]}  a3 {[%clk 0:00:08]} 66. Kg3 {[%clk 0:00:05]}  Rh1 {[%clk 0:00:07]} 67. Kg2 {[%clk 0:00:05]}  Rd1 {[%clk 0:00:07]} 68. g6 {[%clk 0:00:04]}  hxg6 {[%clk 0:00:07]} 69. h7 {[%clk 0:00:04]}  Rd2+ {[%clk 0:00:07]} 70. Kg3 {[%clk 0:00:03]}  Rd3+ {[%clk 0:00:07]} 71. Kg4 {[%clk 0:00:04]}  Rd8 {[%clk 0:00:04]} 72. Bxd8 {[%clk 0:00:02]}  a2 {[%clk 0:00:04]} 73. Bf6 {[%clk 0:00:03]}  a1=Q {[%clk 0:00:04]} 74. Bxa1 {[%clk 0:00:03]}  g5 {[%clk 0:00:05]} 75. h8=Q {[%clk 0:00:02]}  Ka5 {[%clk 0:00:05]} 76. Kxg5 {[%clk 0:00:03]}  Ka4 {[%clk 0:00:05]} 77. Qb8 {[%clk 0:00:04]}  Ka3 {[%clk 0:00:05]} 78. Kf4 {[%clk 0:00:05]}  Ka2 {[%clk 0:00:05]} 79. Be5 {[%clk 0:00:06]}  Ka3 {[%clk 0:00:05]} 80. Qb2+ {[%clk 0:00:06]} 1-0

[Event "January 9 Early 2024"]
[Site "https://www.chess.com"]
[Date "2024.01.11"]
[Round "8"]
[White "Demchenko, Anton"]
[Black "Makarian, Rudik"]
[Result "0-1"]
[Board "247"]
[TimeControl "180+1"]
[WhiteFideId "4160258"]
[BlackFideId "44105681"]
[WhiteElo "2937"]
[BlackElo "3098"]
[WhiteTeam "SLO"]
[BlackTeam "FID"]
[WhiteClock "0:00:03"]
[BlackClock "0:00:03"]

1. e4 {[%clk 0:03:00]}  c5 {[%clk 0:03:00]} 2. Nc3 {[%clk 0:03:00]}  Nc6 {[%clk 0:03:00]} 3. Bb5 {[%clk 0:03:00]}  e6 {[%clk 0:03:00]} 4. Bxc6 {[%clk 0:03:00]}  bxc6 {[%clk 0:03:01]} 5. d3 {[%clk 0:02:59]}  d5 {[%clk 0:03:01]} 6. Qe2 {[%clk 0:02:53]}  Nf6 {[%clk 0:02:56]} 7. Nf3 {[%clk 0:02:47]}  Be7 {[%clk 0:02:55]} 8. O-O {[%clk 0:02:38]}  O-O {[%clk 0:02:54]} 9. Na4 {[%clk 0:02:38]}  c4 {[%clk 0:02:49]} 10. Bg5 {[%clk 0:02:29]}  cxd3 {[%clk 0:02:45]} 11. cxd3 {[%clk 0:02:29]}  Ba6 {[%clk 0:02:44]} 12. Bxf6 {[%clk 0:02:19]}  Bxf6 {[%clk 0:02:41]} 13. Nc5 {[%clk 0:02:17]}  Qb6 {[%clk 0:02:39]} 14. Rac1 {[%clk 0:01:53]}  Rfd8 {[%clk 0:02:28]} 15. b4 {[%clk 0:01:28]}  dxe4 {[%clk 0:01:54]} 16. Qxe4 {[%clk 0:01:26]}  Rd5 {[%clk 0:01:54]} 17. Nxa6 {[%clk 0:01:09]}  Qxa6 {[%clk 0:01:54]} 18. Qc4 {[%clk 0:01:09]}  Qxc4 {[%clk 0:01:35]} 19. dxc4 {[%clk 0:01:09]}  Rd3 {[%clk 0:01:35]} 20. Rfd1 {[%clk 0:01:05]}  Rad8 {[%clk 0:01:35]} 21. Rxd3 {[%clk 0:01:03]}  Rxd3 {[%clk 0:01:35]} 22. Kf1 {[%clk 0:00:57]}  g5 {[%clk 0:01:29]} 23. h3 {[%clk 0:00:52]}  Ra3 {[%clk 0:01:21]} 24. Rc2 {[%clk 0:00:52]}  Ra4 {[%clk 0:01:16]} 25. b5 {[%clk 0:00:47]}  cxb5 {[%clk 0:01:16]} 26. cxb5 {[%clk 0:00:48]}  Ra5 {[%clk 0:01:16]} 27. Rc7 {[%clk 0:00:36]}  Rxa2 {[%clk 0:01:13]} 28. Rb7 {[%clk 0:00:24]}  Kg7 {[%clk 0:01:09]} 29. b6 {[%clk 0:00:24]}  axb6 {[%clk 0:01:10]} 30. Rxb6 {[%clk 0:00:24]}  h6 {[%clk 0:01:10]} 31. Rd6 {[%clk 0:00:23]}  Be7 {[%clk 0:01:07]} 32. Rd2 {[%clk 0:00:23]}  Ra3 {[%clk 0:01:04]} 33. Ke2 {[%clk 0:00:22]}  Bb4 {[%clk 0:01:03]} 34. Rb2 {[%clk 0:00:21]}  Bc5 {[%clk 0:01:03]} 35. Rc2 {[%clk 0:00:22]}  Bb6 {[%clk 0:01:02]} 36. Rb2 {[%clk 0:00:22]}  Bd8 {[%clk 0:00:59]} 37. Rd2 {[%clk 0:00:21]}  Bf6 {[%clk 0:00:58]} 38. Rc2 {[%clk 0:00:21]}  Kg6 {[%clk 0:00:56]} 39. Nd2 {[%clk 0:00:21]}  Bd4 {[%clk 0:00:54]} 40. Nc4 {[%clk 0:00:20]}  Rb3 {[%clk 0:00:49]} 41. Nd2 {[%clk 0:00:20]}  Rb5 {[%clk 0:00:48]} 42. Nf3 {[%clk 0:00:17]}  Bf6 {[%clk 0:00:47]} 43. Nd2 {[%clk 0:00:17]}  Be7 {[%clk 0:00:41]} 44. g4 {[%clk 0:00:16]}  Ra5 {[%clk 0:00:38]} 45. Kf3 {[%clk 0:00:15]}  Ra3+ {[%clk 0:00:36]} 46. Kg2 {[%clk 0:00:16]}  Bf6 {[%clk 0:00:34]} 47. Nf3 {[%clk 0:00:16]}  Ra4 {[%clk 0:00:31]} 48. Re2 {[%clk 0:00:17]}  Be7 {[%clk 0:00:29]} 49. Ne1 {[%clk 0:00:16]}  h5 {[%clk 0:00:27]} 50. f3 {[%clk 0:00:16]}  h4 {[%clk 0:00:26]} 51. Nd3 {[%clk 0:00:15]}  Bd6 {[%clk 0:00:26]} 52. Nf2 {[%clk 0:00:15]}  Bf4 {[%clk 0:00:21]} 53. Nd3 {[%clk 0:00:15]}  Bd6 {[%clk 0:00:19]} 54. Rd2 {[%clk 0:00:15]}  Kf6 {[%clk 0:00:12]} 55. Re2 {[%clk 0:00:12]}  Rd4 {[%clk 0:00:10]} 56. Nf2 {[%clk 0:00:13]}  Bf4 {[%clk 0:00:11]} 57. Ne4+ {[%clk 0:00:13]}  Ke7 {[%clk 0:00:12]} 58. Nf2 {[%clk 0:00:14]}  Kd6 {[%clk 0:00:11]} 59. Ra2 {[%clk 0:00:14]}  Ke7 {[%clk 0:00:08]} 60. Ra7+ {[%clk 0:00:14]}  Kf6 {[%clk 0:00:08]} 61. Ra2 {[%clk 0:00:15]}  Kg6 {[%clk 0:00:07]} 62. Re2 {[%clk 0:00:15]}  Ra4 {[%clk 0:00:08]} 63. Ne4 {[%clk 0:00:14]}  Ra1 {[%clk 0:00:08]} 64. Nf2 {[%clk 0:00:14]}  Bc7 {[%clk 0:00:08]} 65. Rb2 {[%clk 0:00:13]}  Be5 {[%clk 0:00:08]} 66. Rd2 {[%clk 0:00:13]}  Bc3 {[%clk 0:00:08]} 67. Re2 {[%clk 0:00:08]}  Bd4 {[%clk 0:00:08]} 68. Rd2 {[%clk 0:00:06]}  Be3 {[%clk 0:00:07]} 69. Re2 {[%clk 0:00:07]}  Bxf2 {[%clk 0:00:08]} 70. Rxf2 {[%clk 0:00:06]}  Ra4 {[%clk 0:00:07]} 71. Rb2 {[%clk 0:00:06]}  Kf6 {[%clk 0:00:07]} 72. Kf2 {[%clk 0:00:06]}  Ke5 {[%clk 0:00:07]} 73. Rb7 {[%clk 0:00:05]}  Ra2+ {[%clk 0:00:06]} 74. Ke3 {[%clk 0:00:05]}  Kf6 {[%clk 0:00:03]} 75. Rb1 {[%clk 0:00:01]}  Rh2 {[%clk 0:00:02]} 76. Rf1 {[%clk 0:00:01]}  Rxh3 {[%clk 0:00:02]} 77. Kf2 {[%clk 0:00:02]}  Rh2+ {[%clk 0:00:02]} 78. Ke3 {[%clk 0:00:02]}  Ra2 {[%clk 0:00:03]} 79. Rc1 {[%clk 0:00:03]}  Ra3+ {[%clk 0:00:03]} 80. Ke4 {[%clk 0:00:03]}  Kg6 {[%clk 0:00:03]} 81. Rc8 {[%clk 0:00:02]}  f5+ {[%clk 0:00:03]} 82. Ke5 {[%clk 0:00:02]}  Re3+ {[%clk 0:00:03]} 83. Kd4 {[%clk 0:00:02]}  Rxf3 {[%clk 0:00:03]} 84. Ke5 {[%clk 0:00:02]}  Re3+ {[%clk 0:00:03]} 85. Kd4 {[%clk 0:00:03]}  Re4+ {[%clk 0:00:03]} 0-1

[Event "January 9 Early 2024"]
[Site "https://www.chess.com"]
[Date "2024.01.11"]
[Round "8"]
[White "Tristan, Leonardo"]
[Black "Ashraf, Artin"]
[Result "1/2-1/2"]
[Board "250"]
[TimeControl "180+1"]
[WhiteFideId "113816"]
[BlackFideId "22514805"]
[WhiteElo "2745"]
[BlackElo "2904"]
[WhiteTeam "ARG"]
[BlackTeam "IRI"]
[WhiteClock "0:00:05"]
[BlackClock "0:00:04"]

1. d4 {[%clk 0:03:00]}  d5 {[%clk 0:02:59]} 2. Nf3 {[%clk 0:03:00]}  Nf6 {[%clk 0:02:55]} 3. Bf4 {[%clk 0:03:00]}  g6 {[%clk 0:02:49]} 4. e3 {[%clk 0:03:00]}  Bg7 {[%clk 0:02:49]} 5. Be2 {[%clk 0:03:01]}  O-O {[%clk 0:02:49]} 6. O-O {[%clk 0:03:01]}  c5 {[%clk 0:02:46]} 7. c3 {[%clk 0:03:01]}  Nc6 {[%clk 0:02:45]} 8. h3 {[%clk 0:03:02]}  b6 {[%clk 0:02:39]} 9. Qb3 {[%clk 0:02:54]}  e6 {[%clk 0:02:06]} 10. Nbd2 {[%clk 0:02:49]}  Qe7 {[%clk 0:02:05]} 11. Qa3 {[%clk 0:02:44]}  Rd8 {[%clk 0:02:02]} 12. Rac1 {[%clk 0:02:36]}  Bf8 {[%clk 0:01:52]} 13. Bg5 {[%clk 0:01:39]}  h6 {[%clk 0:01:48]} 14. Bh4 {[%clk 0:01:38]}  g5 {[%clk 0:01:09]} 15. Bg3 {[%clk 0:01:38]}  Bb7 {[%clk 0:01:08]} 16. c4 {[%clk 0:00:58]}  cxd4 {[%clk 0:00:40]} 17. Qxe7 {[%clk 0:00:59]}  Bxe7 {[%clk 0:00:41]} 18. cxd5 {[%clk 0:00:59]}  Nxd5 {[%clk 0:00:34]} 19. exd4 {[%clk 0:00:59]}  Rac8 {[%clk 0:00:33]} 20. a3 {[%clk 0:00:50]}  f6 {[%clk 0:00:29]} 21. Nc4 {[%clk 0:00:46]}  Kf7 {[%clk 0:00:23]} 22. Rfd1 {[%clk 0:00:46]}  Rd7 {[%clk 0:00:20]} 23. Ne3 {[%clk 0:00:46]}  Rcd8 {[%clk 0:00:09]} 24. Bb5 {[%clk 0:00:46]}  Rc8 {[%clk 0:00:08]} 25. Nxd5 {[%clk 0:00:43]}  Rxd5 {[%clk 0:00:08]} 26. Bc4 {[%clk 0:00:44]}  Rdd8 {[%clk 0:00:06]} 27. d5 {[%clk 0:00:44]}  exd5 {[%clk 0:00:05]} 28. Rxd5 {[%clk 0:00:44]}  Kg7 {[%clk 0:00:06]} 29. Rxd8 {[%clk 0:00:40]}  Rxd8 {[%clk 0:00:06]} 30. Bb5 {[%clk 0:00:41]}  Rc8 {[%clk 0:00:04]} 31. Rd1 {[%clk 0:00:34]}  Rd8 {[%clk 0:00:04]} 32. Re1 {[%clk 0:00:34]}  Kf8 {[%clk 0:00:04]} 33. h4 {[%clk 0:00:30]}  Nb8 {[%clk 0:00:03]} 34. Rc1 {[%clk 0:00:17]}  Bc5 {[%clk 0:00:01]} 35. b4 {[%clk 0:00:17]}  Bd6 {[%clk 0:00:02]} 36. Bxd6+ {[%clk 0:00:11]}  Rxd6 {[%clk 0:00:03]} 37. hxg5 {[%clk 0:00:10]}  hxg5 {[%clk 0:00:03]} 38. Rc7 {[%clk 0:00:09]}  Bxf3 {[%clk 0:00:03]} 39. gxf3 {[%clk 0:00:10]}  a6 {[%clk 0:00:03]} 40. Bf1 {[%clk 0:00:07]}  Rd8 {[%clk 0:00:03]} 41. Rb7 {[%clk 0:00:07]}  b5 {[%clk 0:00:03]} 42. Bh3 {[%clk 0:00:06]}  Ke8 {[%clk 0:00:02]} 43. Bf5 {[%clk 0:00:05]}  Kf8 {[%clk 0:00:03]} 44. Bg6 {[%clk 0:00:05]}  Rc8 {[%clk 0:00:02]} 45. Rf7+ {[%clk 0:00:06]}  Kg8 {[%clk 0:00:03]} 46. Rxf6 {[%clk 0:00:06]}  Rc6 {[%clk 0:00:03]} 47. Rxc6 {[%clk 0:00:05]}  Nxc6 {[%clk 0:00:04]} 48. Be4 {[%clk 0:00:06]}  Ne5 {[%clk 0:00:03]} 49. Bb7 {[%clk 0:00:06]}  Nc4 {[%clk 0:00:04]} 50. Bxa6 {[%clk 0:00:06]}  Nxa3 {[%clk 0:00:05]} 51. Kf1 {[%clk 0:00:06]}  Nc2 {[%clk 0:00:05]} 52. Bxb5 {[%clk 0:00:05]}  Nxb4 {[%clk 0:00:05]} 53. Ke2 {[%clk 0:00:05]}  Kg7 {[%clk 0:00:05]} 54. Ke3 {[%clk 0:00:05]}  Nd5+ {[%clk 0:00:05]} 55. Ke4 {[%clk 0:00:05]}  Ne7 {[%clk 0:00:05]} 56. Ke5 {[%clk 0:00:05]}  Ng6+ {[%clk 0:00:05]} 57. Kf5 {[%clk 0:00:04]}  Kh6 {[%clk 0:00:05]} 58. Be8 {[%clk 0:00:03]}  Nf4 {[%clk 0:00:06]} 59. Kg4 {[%clk 0:00:04]}  Nd5 {[%clk 0:00:06]} 60. Bf7 {[%clk 0:00:04]}  Nf6+ {[%clk 0:00:04]} 61. Kf5 {[%clk 0:00:04]}  Nh7 {[%clk 0:00:05]} 62. Bd5 {[%clk 0:00:04]}  Nf8 {[%clk 0:00:05]} 63. Be4 {[%clk 0:00:03]}  Ng6 {[%clk 0:00:04]} 64. Kf6 {[%clk 0:00:03]}  Nf4 {[%clk 0:00:05]} 65. Bf5 {[%clk 0:00:02]}  Nh5+ {[%clk 0:00:05]} 66. Ke5 {[%clk 0:00:02]}  Nf4 {[%clk 0:00:06]} 67. Bg4 {[%clk 0:00:02]}  Kg6 {[%clk 0:00:06]} 68. Kd6 {[%clk 0:00:02]}  Kf6 {[%clk 0:00:07]} 69. Kc5 {[%clk 0:00:02]}  Ke5 {[%clk 0:00:08]} 70. Kc6 {[%clk 0:00:02]}  Nd3 {[%clk 0:00:07]} 71. Kd7 {[%clk 0:00:03]}  Nxf2 {[%clk 0:00:08]} 72. Bh5 {[%clk 0:00:03]}  Kf4 {[%clk 0:00:06]} 73. Kd6 {[%clk 0:00:03]}  Nd3 {[%clk 0:00:06]} 74. Ke6 {[%clk 0:00:03]}  Nc5+ {[%clk 0:00:05]} 75. Kf6 {[%clk 0:00:04]}  Nb3 {[%clk 0:00:06]} 76. Kg6 {[%clk 0:00:04]}  Nd2 {[%clk 0:00:06]} 77. Kh6 {[%clk 0:00:05]}  Nf1 {[%clk 0:00:06]} 78. Kg6 {[%clk 0:00:05]}  Nh2 {[%clk 0:00:07]} 79. Kh6 {[%clk 0:00:05]}  Kf5 {[%clk 0:00:07]} 80. Bg6+ {[%clk 0:00:04]}  Kf6 {[%clk 0:00:08]} 81. Bh5 {[%clk 0:00:05]}  Nf1 {[%clk 0:00:08]} 82. Bg4 {[%clk 0:00:05]}  Ne3 {[%clk 0:00:08]} 83. Bh5 {[%clk 0:00:06]}  Nf5+ {[%clk 0:00:08]} 84. Kh7 {[%clk 0:00:06]}  Ke5 {[%clk 0:00:08]} 85. Kg6 {[%clk 0:00:06]}  Kf4 {[%clk 0:00:08]} 86. Bg4 {[%clk 0:00:06]}  Nh4+ {[%clk 0:00:07]} 87. Kh5 {[%clk 0:00:05]}  Ng2 {[%clk 0:00:07]} 88. Kh6 {[%clk 0:00:05]}  Ne3 {[%clk 0:00:08]} 89. Kh5 {[%clk 0:00:06]}  Nc4 {[%clk 0:00:07]} 90. Kh6 {[%clk 0:00:05]}  Nd6 {[%clk 0:00:06]} 91. Kh5 {[%clk 0:00:05]}  Nb5 {[%clk 0:00:07]} 92. Kg6 {[%clk 0:00:05]}  Nd4 {[%clk 0:00:07]} 93. Bh5 {[%clk 0:00:06]}  Nf5 {[%clk 0:00:06]} 94. Bg4 {[%clk 0:00:06]}  Ng3 {[%clk 0:00:06]} 95. Kf6 {[%clk 0:00:05]}  Ne2 {[%clk 0:00:06]} 96. Bh5 {[%clk 0:00:05]}  Nc3 {[%clk 0:00:04]} 97. Bg4 {[%clk 0:00:05]}  Nd1 {[%clk 0:00:05]} 98. Bh5 {[%clk 0:00:05]}  Ne3 {[%clk 0:00:05]} 99. Kg6 {[%clk 0:00:05]}  Nf5 {[%clk 0:00:04]} 1/2-1/2

[Event "January 9 Early 2024"]
[Site "https://www.chess.com"]
[Date "2024.01.11"]
[Round "9"]
[White "Sethuraman, S.P."]
[Black "Bortnyk, Olexandr"]
[Result "0-1"]
[Board "1"]
[TimeControl "180+1"]
[WhiteFideId "5021596"]
[BlackFideId "14120828"]
[WhiteElo "2881"]
[BlackElo "3114"]
[WhiteTeam "IND"]
[BlackTeam "UKR"]
[WhiteClock "0:01:57"]
[BlackClock "0:02:59"]

1. e4 {[%clk 0:03:00]}  Nf6 {[%clk 0:02:59]} 2. e5 {[%clk 0:03:00]}  Nd5 {[%clk 0:02:59]} 3. d4 {[%clk 0:03:01]}  d6 {[%clk 0:03:00]} 4. Nf3 {[%clk 0:03:02]}  dxe5 {[%clk 0:03:00]} 5. Nxe5 {[%clk 0:03:02]}  c6 {[%clk 0:03:01]} 6. Be2 {[%clk 0:03:01]}  Bf5 {[%clk 0:03:01]} 7. O-O {[%clk 0:02:59]}  Nd7 {[%clk 0:03:01]} 8. Nf3 {[%clk 0:02:58]}  e6 {[%clk 0:03:01]} 9. c4 {[%clk 0:02:55]}  N5f6 {[%clk 0:03:02]} 10. Nc3 {[%clk 0:02:54]}  Bd6 {[%clk 0:03:01]} 11. Nh4 {[%clk 0:02:51]}  Bg6 {[%clk 0:03:01]} 12. Be3 {[%clk 0:02:49]}  Ne4 {[%clk 0:03:01]} 13. Nxg6 {[%clk 0:02:44]}  Bxh2+ {[%clk 0:02:59]} 14. Kh1 {[%clk 0:02:11]}  hxg6 {[%clk 0:03:00]} 15. Nxe4 {[%clk 0:02:07]}  Bc7+ {[%clk 0:02:57]} 16. Kg1 {[%clk 0:02:05]}  Rh1+ {[%clk 0:02:57]} 17. Kxh1 {[%clk 0:01:58]}  Qh4+ {[%clk 0:02:58]} 18. Kg1 {[%clk 0:01:57]}  Qh2# {[%clk 0:02:59]} 0-1

[Event "January 9 Early 2024"]
[Site "https://www.chess.com"]
[Date "2024.01.11"]
[Round "9"]
[White "Nigalidze, Gaioz"]
[Black "Gutierrez Olivares, Daniel"]
[Result "1-0"]
[Board "3"]
[TimeControl "180+1"]
[WhiteFideId "13603078"]
[BlackFideId "2264005"]
[WhiteElo "2657"]
[BlackElo "2477"]
[WhiteTeam "GEO"]
[BlackTeam "ESP"]
[WhiteClock "0:01:54"]
[BlackClock "0:01:33"]

1. e4 {[%clk 0:03:00]}  e6 {[%clk 0:02:59]} 2. d4 {[%clk 0:03:00]}  d5 {[%clk 0:02:59]} 3. exd5 {[%clk 0:03:00]}  exd5 {[%clk 0:02:59]} 4. Nf3 {[%clk 0:03:00]}  Nc6 {[%clk 0:02:57]} 5. Bd3 {[%clk 0:02:59]}  Bg4 {[%clk 0:02:55]} 6. c3 {[%clk 0:02:56]}  Bd6 {[%clk 0:02:55]} 7. O-O {[%clk 0:02:55]}  Nge7 {[%clk 0:02:54]} 8. Bg5 {[%clk 0:02:54]}  f6 {[%clk 0:02:52]} 9. Bh4 {[%clk 0:02:53]}  Nf5 {[%clk 0:02:38]} 10. Re1+ {[%clk 0:02:50]}  Nce7 {[%clk 0:02:36]} 11. h3 {[%clk 0:02:01]}  Bh5 {[%clk 0:01:33]} 12. Bxf5 {[%clk 0:01:54]} 1-0

[Event "January 9 Early 2024"]
[Site "https://www.chess.com"]
[Date "2024.01.11"]
[Round "9"]
[White "Luukkonen, Tommi"]
[Black "Spitzl, Vinzent"]
[Result "1-0"]
[Board "6"]
[TimeControl "180+1"]
[WhiteFideId "501808"]
[BlackFideId "12901253"]
[WhiteElo "2334"]
[BlackElo "2430"]
[WhiteTeam "FIN"]
[BlackTeam "GER"]
[WhiteClock "0:02:16"]
[BlackClock "0:01:41"]

1. e4 {[%clk 0:03:00]}  d5 {[%clk 0:02:57]} 2. exd5 {[%clk 0:03:00]}  Qxd5 {[%clk 0:02:58]} 3. Nc3 {[%clk 0:02:59]}  Qd8 {[%clk 0:02:59]} 4. d4 {[%clk 0:02:59]}  Nf6 {[%clk 0:02:59]} 5. Nf3 {[%clk 0:02:58]}  g6 {[%clk 0:02:59]} 6. Bc4 {[%clk 0:02:57]}  Bg7 {[%clk 0:02:59]} 7. Ne5 {[%clk 0:02:56]}  O-O {[%clk 0:02:59]} 8. O-O {[%clk 0:02:55]}  Nc6 {[%clk 0:02:59]} 9. Nxc6 {[%clk 0:02:50]}  bxc6 {[%clk 0:02:59]} 10. Re1 {[%clk 0:02:48]}  Rb8 {[%clk 0:02:54]} 11. Bb3 {[%clk 0:02:43]}  Bf5 {[%clk 0:02:49]} 12. Bg5 {[%clk 0:02:38]}  Qd6 {[%clk 0:02:35]} 13. Qf3 {[%clk 0:02:36]}  Rfe8 {[%clk 0:02:25]} 14. Rad1 {[%clk 0:02:35]}  Rbd8 {[%clk 0:02:21]} 15. h3 {[%clk 0:02:32]}  h6 {[%clk 0:02:13]} 16. Bh4 {[%clk 0:02:30]}  Nd5 {[%clk 0:02:06]} 17. Ne4 {[%clk 0:02:28]}  Bxe4 {[%clk 0:02:04]} 18. Rxe4 {[%clk 0:02:28]}  Rb8 {[%clk 0:01:53]} 19. c4 {[%clk 0:02:27]}  Nf6 {[%clk 0:01:46]} 20. c5 {[%clk 0:02:24]}  Qd7 {[%clk 0:01:42]} 21. Re2 {[%clk 0:02:17]}  e6 {[%clk 0:01:41]} 22. Bxf6 {[%clk 0:02:16]} 1-0

[Event "January 9 Early 2024"]
[Site "https://www.chess.com"]
[Date "2024.01.11"]
[Round "9"]
[White "Skibbe, Willi"]
[Black "Bazilius, Augustinas"]
[Result "0-1"]
[Board "7"]
[TimeControl "180+1"]
[WhiteFideId "4682190"]
[BlackFideId "12832251"]
[WhiteElo "2365"]
[BlackElo "2515"]
[WhiteTeam "GER"]
[BlackTeam "LTU"]
[WhiteClock "0:01:47"]
[BlackClock "0:02:03"]

1. e4 {[%clk 0:03:00]}  c5 {[%clk 0:02:57]} 2. c3 {[%clk 0:03:00]}  h6 {[%clk 0:02:52]} 3. d4 {[%clk 0:02:57]}  cxd4 {[%clk 0:02:53]} 4. cxd4 {[%clk 0:02:56]}  d6 {[%clk 0:02:53]} 5. Nc3 {[%clk 0:02:56]}  g6 {[%clk 0:02:53]} 6. Nf3 {[%clk 0:02:56]}  Bg7 {[%clk 0:02:54]} 7. h3 {[%clk 0:02:56]}  Nf6 {[%clk 0:02:54]} 8. Be2 {[%clk 0:02:55]}  O-O {[%clk 0:02:54]} 9. O-O {[%clk 0:02:55]}  b6 {[%clk 0:02:55]} 10. Be3 {[%clk 0:02:54]}  Bb7 {[%clk 0:02:55]} 11. Nd2 {[%clk 0:02:54]}  Nbd7 {[%clk 0:02:55]} 12. f4 {[%clk 0:02:52]}  Rc8 {[%clk 0:02:55]} 13. Bf3 {[%clk 0:02:44]}  e5 {[%clk 0:02:48]} 14. dxe5 {[%clk 0:02:22]}  dxe5 {[%clk 0:02:49]} 15. f5 {[%clk 0:02:22]}  g5 {[%clk 0:02:47]} 16. Nb5 {[%clk 0:02:03]}  Nc5 {[%clk 0:02:34]} 17. Nxa7 {[%clk 0:01:55]}  Ra8 {[%clk 0:02:33]} 18. Bxc5 {[%clk 0:01:55]}  bxc5 {[%clk 0:02:29]} 19. Nb5 {[%clk 0:01:54]}  Ba6 {[%clk 0:02:28]} 20. a4 {[%clk 0:01:52]}  Bxb5 {[%clk 0:02:06]} 21. axb5 {[%clk 0:01:50]}  Rxa1 {[%clk 0:02:07]} 22. Qxa1 {[%clk 0:01:50]}  Qxd2 {[%clk 0:02:06]} 23. Rd1 {[%clk 0:01:49]}  Qe3+ {[%clk 0:02:06]} 24. Kh1 {[%clk 0:01:50]}  Nxe4 {[%clk 0:02:06]} 25. Re1 {[%clk 0:01:49]}  Ng3+ {[%clk 0:02:04]} 26. Kh2 {[%clk 0:01:47]}  Qf4 {[%clk 0:02:05]} 27. Re4 {[%clk 0:01:47]}  Nxe4+ {[%clk 0:02:03]} 0-1